fUST/lending_fUST_20251022
["ID","MTS","AMOUNT","RATE_DAILY","PERIOD"]
[392044949,1761118241867,-2272.56,0.00034246,7]
[392044950,1761118241876,-500.0,0.00034246,2]
[392044951,1761118241887,-7000.0,0.00034246,2]
[392044952,1761118241897,-7000.0,0.00034246,2]
[392044953,1761118241907,-7000.0,0.00034246,2]
[392044954,1761118241917,-4875.83281016,0.00034246,2]
[392044955,1761118241926,-2334.6,0.00034246,7]
[392044956,1761118241936,-4308.67,0.00034246,7]
[392044957,1761118241945,-278.534647,0.00034251,2]
[392044958,1761118241954,-217.371539,0.00034251,2]
[392044959,1761118241964,-2235.12,0.00034457,7]
[392044960,1761118241974,-15886.55,0.000345,14]
[392044961,1761118241983,-2000.0,0.00034516,5]
[392044962,1761118241992,-2272.56,0.0003452,7]
[392044963,1761118242002,-500.0,0.0003452,2]
[392044964,1761118242011,-2334.6,0.0003452,7]
[392044965,1761118242021,-4308.67,0.0003452,7]
[392044966,1761118242031,-300.0,0.00034521,5]
[392044967,1761118242040,-632.0,0.00034528,2]
[392044968,1761118242049,-532.576,0.00034528,2]
[392044969,1761118242059,-13071.17996816,0.00034568,2]
[392044970,1761118242068,-1828.01,0.000346,14]
[392044971,1761118242078,-1500.0,0.00034624,5]
[392044972,1761118242087,-278.534647,0.00034629,10]
[392044973,1761118242097,-217.371539,0.00034629,10]
[392044974,1761118242106,-444935.46585017,0.0003465,3]
[392044975,1761118242237,-10765.0,0.0003465,3]
[392045053,1761118248204,-411.0,0.00034529,2]
[392045054,1761118248214,-414.15,0.0003464,10]
[392045055,1761118248223,-2132.05,0.0003465,3]
[392045056,1761118248234,-1076.4,0.0003465,3]
[392045057,1761118269808,646.621971,0.00013699,2]
[392045058,1761118270021,646.621971,0.00020187,2]
[392045060,1761118340778,150.0,0.00013304,30]
[392045061,1761118341289,150.0,0.00014513,30]
[392045062,1761118341724,150.0,0.00015722,30]
[392045063,1761118342187,150.0,0.00016932,30]
[392045064,1761118342664,150.0,0.00018141,30]
[392045065,1761118343108,150.0,0.00019351,30]
[392045066,1761118343558,159.15,0.0002056,30]
[392045067,1761118440807,15108.31368821,0.00035061,30]
[392045068,1761118444594,6164.77,0.00035061,30]
[392045069,1761118506336,250.0,0.00035055,30]
[392045070,1761118506512,500.0,0.00035055,30]
[392045071,1761118507136,250.0,0.00035055,30]
[392045072,1761118507751,250.0,0.00035055,30]
[392045073,1761118507949,151.0,0.00035055,30]
[392045074,1761118508401,250.0,0.00035055,30]
[392045075,1761118508558,151.0,0.00035055,30]
[392045076,1761118508830,250.0,0.00035055,30]
[392045077,1761118509091,250.0,0.00035055,30]
[392045078,1761118509202,151.0,0.00035055,30]
[392045079,1761118509508,250.0,0.00035055,30]
[392045080,1761118509860,151.0,0.00035055,30]
[392045081,1761118510019,250.0,0.00035055,30]
[392045082,1761118510138,250.0,0.00035055,30]
[392045083,1761118510500,151.0,0.00035055,30]
[392045084,1761118510681,250.0,0.00035055,30]
[392045085,1761118510774,250.0,0.00035055,30]
[392045086,1761118511112,151.0,0.00035055,30]
[392045087,1761118511312,250.0,0.00035055,30]
[392045088,1761118511461,250.0,0.00035055,30]
[392045089,1761118511779,151.0,0.00035055,30]
[392045090,1761118512136,250.0,0.00035055,30]
[392045091,1761118512438,151.0,0.00035055,30]
[392045092,1761118512494,250.0,0.00035055,30]
[392045093,1761118513081,151.0,0.00035055,30]
[392045094,1761118513202,250.0,0.00035055,30]
[392045095,1761118513768,151.0,0.00035055,30]
[392045096,1761118513854,250.0,0.00035055,30]
[392045097,1761118514427,151.0,0.00035055,30]
[392045098,1761118514565,250.0,0.00035055,30]
[392045099,1761118515060,151.0,0.00035055,30]
[392045100,1761118515215,250.0,0.00035055,30]
[392045101,1761118515804,151.0,0.00035055,30]
[392045102,1761118518561,270.47816586,0.00035055,30]
[392045103,1761118524660,263.41391921,0.00035055,30]
[392045104,1761118638967,21750.0,0.00035055,30]
[392045105,1761119027577,200.0,0.0003,120]
[392045109,1761119163332,300.0,0.0003,120]
[392045110,1761119200130,349.0,0.0003,120]
[392045111,1761119244450,300.0,0.0003,120]
[392045165,1761119432037,-361.87666,0.00024356,2]
[392045167,1761119432048,-4638.12334,0.00024356,2]
[392045169,1761119432057,-150.0,0.00024703,2]
[392045171,1761119432066,-160.0,0.00024773,2]
[392045173,1761119432075,-177.0,0.00025703,2]
[392045175,1761119432084,-646.621971,0.00026676,2]
[392045177,1761119432094,-204.0,0.00026703,2]
[392045179,1761119432103,-231.0,0.00027703,2]
[392045181,1761119432112,-286.0,0.00027999,2]
[392045183,1761119432122,-300.0,0.00027999,2]
[392045185,1761119432132,-403.14601822,0.00028,10]
[392045187,1761119432142,-666.0,0.00028269,2]
[392045189,1761119432151,-258.0,0.00028703,2]
[392045192,1761119432163,-160.0,0.00028804,2]
[392045195,1761119432172,-403.14601822,0.00028804,2]
[392045197,1761119432182,-285.0,0.00029703,2]
[392045199,1761119432191,-321.779608,0.00030126,2]
[392045201,1761119432202,-239.108693,0.00030126,2]
[392045203,1761119432212,-500.0,0.00030136,7]
[392045205,1761119432222,-500.0,0.00030136,2]
[392045207,1761119432231,-420.0,0.00030239,2]
[392045209,1761119432240,-500.0,0.0003041,2]
[392045210,1761119432251,-500.0,0.00030684,2]
[392045211,1761119432260,-312.0,0.00030703,2]
[392045212,1761119432269,-422.02,0.00030737,2]
[392045213,1761119432278,-500.0,0.00030958,2]
[392045214,1761119432287,-403.14601822,0.00031,7]
[392045216,1761119432297,-168.48014981,0.00031,28]
[392045218,1761119432306,-500.0,0.00031232,2]
[392045220,1761119432315,-321.779608,0.00031232,7]
[392045222,1761119432325,-239.108693,0.00031232,7]
[392045224,1761119432334,-500.0,0.00031504,7]
[392045226,1761119432343,-500.0,0.00031504,3]
[392045228,1761119432353,-875.47,0.00031504,7]
[392045230,1761119432362,-1615.75,0.00031504,7]
[392045232,1761119432371,-852.21,0.00031504,7]
[392045234,1761119432381,-931.3,0.00031505,7]
[392045236,1761119432391,-500.0,0.00031505,2]
[392045238,1761119432400,-500.0,0.00031505,7]
[392045240,1761119432409,-500.0,0.00031505,7]
[392045242,1761119432418,-500.0,0.00031505,7]
[392045244,1761119432428,-500.0,0.00031506,2]
[392045246,1761119432437,-339.0,0.00031703,2]
[392045248,1761119432446,-500.0,0.00031778,7]
[392045260,1761119432554,-500.0,0.00031778,3]
[392045262,1761119432564,-875.47,0.00031778,7]
[392045264,1761119432573,-1615.75,0.00031778,7]
[392045266,1761119432582,-852.21,0.00031778,7]
[392045268,1761119432591,-500.0,0.00031779,7]
[392045270,1761119432600,-931.3,0.00031779,7]
[392045272,1761119432609,-500.0,0.00031779,2]
[392045274,1761119432619,-500.0,0.00031779,7]
[392045276,1761119432628,-500.0,0.00031779,7]
[392045278,1761119432637,-500.0,0.00031779,7]
[392045280,1761119432647,-418.1887714,0.0003178,2]
[392045282,1761119432656,-500.0,0.00031867,5]
[392045284,1761119432665,-500.0,0.00031867,5]
[392045286,1761119432674,-500.0,0.00031867,5]
[392045288,1761119432684,-200.0,0.00032,120]
[392045289,1761119432693,-875.47,0.00032052,7]
[392045292,1761119432703,-1615.75,0.00032052,7]
[392045294,1761119432712,-852.21,0.00032052,7]
[392045296,1761119432722,-500.0,0.00032053,7]
[392045298,1761119432732,-931.3,0.00032053,7]
[392045300,1761119432741,-236.28,0.00032053,2]
[392045301,1761119432750,-500.0,0.00032053,7]
[392045304,1761119432760,-500.0,0.00032053,7]
[392045305,1761119432769,-500.0,0.00032275,5]
[392045307,1761119432779,-500.0,0.00032275,5]
[392045309,1761119432788,-500.0,0.00032275,5]
[392045311,1761119432797,-150.0,0.00032275,5]
[392045313,1761119432806,-152.62,0.00032315,15]
[392045315,1761119432815,-152.62,0.00032315,15]
[392045317,1761119432825,-152.62,0.00032321,15]
[392045319,1761119432834,-875.47,0.00032326,7]
[392045321,1761119432842,-1615.75,0.00032326,7]
[392045323,1761119432851,-852.21,0.00032326,7]
[392045325,1761119432860,-500.0,0.00032327,7]
[392045327,1761119432870,-931.3,0.00032327,7]
[392045329,1761119432879,-500.0,0.00032327,7]
[392045331,1761119432888,-500.0,0.00032327,7]
[392045333,1761119432897,-442.97174692,0.00032408,5]
[392045335,1761119432907,-300.0,0.00032412,5]
[392045337,1761119432916,-1000.0,0.00032415,5]
[392045339,1761119432926,-1000.0,0.00032415,5]
[392045341,1761119432935,-1000.0,0.00032415,5]
[392045343,1761119432944,-152.62,0.00032415,15]
[392045345,1761119432954,-152.62,0.00032415,15]
[392045346,1761119432964,-152.62,0.00032421,15]
[392045349,1761119432973,-151.0,0.00032509,2]
[392045350,1761119432983,-152.62,0.00032515,15]
[392045352,1761119432992,-152.62,0.00032515,15]
[392045355,1761119433004,-152.62,0.00032521,15]
[392045357,1761119433013,-150.89059373,0.00032549,5]
[392045358,1761119433023,-875.47,0.000326,7]
[392045360,1761119433033,-1615.75,0.000326,7]
[392045362,1761119433042,-852.21,0.000326,7]
[392045364,1761119433051,-500.0,0.00032601,7]
[392045366,1761119433060,-931.3,0.00032601,7]
[392045367,1761119433070,-500.0,0.00032601,7]
[392045368,1761119433079,-500.0,0.00032601,7]
[392045369,1761119433088,-152.62,0.00032615,15]
[392045370,1761119433098,-152.62,0.00032621,15]
[392045371,1761119433107,-383.0,0.00032658,2]
[392045372,1761119433116,-221.8863135,0.00032703,2]
[392045373,1761119433130,-152.62,0.00032715,15]
[392045374,1761119433140,-152.62,0.00032721,15]
[392045375,1761119433149,-152.62,0.00032815,15]
[392045376,1761119433158,-152.62,0.00032821,15]
[392045378,1761119433169,-500.0,0.00032823,5]
[392045380,1761119433179,-1000.0,0.00032823,5]
[392045382,1761119433188,-1000.0,0.00032823,5]
[392045384,1761119433198,-875.47,0.00032874,7]
[392045385,1761119433208,-1615.75,0.00032874,7]
[392045386,1761119433218,-852.21,0.00032874,7]
[392045387,1761119433227,-931.3,0.00032875,7]
[392045388,1761119433238,-500.0,0.00032875,7]
[392045389,1761119433248,-500.0,0.00032875,7]
[392045390,1761119433257,-206.42,0.000329,7]
[392045391,1761119433267,-152.62,0.00032915,60]
[392045392,1761119433277,-152.62,0.00032921,60]
[392045393,1761119433287,-1005.90975051,0.00032963,5]
[392045394,1761119433297,-1500.0,0.00032963,5]
[392045395,1761119433307,-370.01383098,0.00032963,5]
[392045396,1761119433316,-152.62,0.00033015,60]
[392045397,1761119433326,-152.62,0.00033021,60]
[392045398,1761119433336,-152.62,0.00033115,60]
[392045399,1761119433346,-152.62,0.00033121,60]
[392045400,1761119433355,-875.47,0.00033148,7]
[392045401,1761119433365,-1615.75,0.00033148,7]
[392045402,1761119433375,-852.21,0.00033148,7]
[392045403,1761119433384,-931.3,0.00033149,7]
[392045404,1761119433394,-500.0,0.00033149,7]
[392045405,1761119433404,-333.38,0.00033149,7]
[392045406,1761119433414,-646.621971,0.00033165,2]
[392045407,1761119433424,-161.94846974,0.000332,117]
[392045408,1761119433435,-262.14,0.00033365,30]
[392045409,1761119433445,-1500.0,0.00033371,5]
[392045410,1761119433455,-1500.0,0.00033371,5]
[392045411,1761119433465,-875.47,0.00033422,7]
[392045412,1761119433474,-1615.75,0.00033422,7]
[392045413,1761119433484,-852.21,0.00033422,7]
[392045414,1761119433493,-931.3,0.00033423,7]
[392045415,1761119433505,-500.0,0.00033423,7]
[392045416,1761119433514,-303.57,0.00033676,10]
[392045417,1761119433524,-578.89,0.00033676,10]
[392045418,1761119433533,-12286.6116075,0.00033686,2]
[392045419,1761119433543,-183.22566891,0.00033686,2]
[392045420,1761119433553,-875.47,0.00033696,7]
[392045421,1761119433563,-1615.75,0.00033696,7]
[392045422,1761119433572,-852.21,0.00033696,7]
[392045423,1761119433582,-931.3,0.00033697,7]
[392045424,1761119433592,-500.0,0.00033697,7]
[392045425,1761119433601,-4000.0,0.00033862,7]
[392045426,1761119433611,-2017.17340017,0.00033866,2]
[392045427,1761119433620,-2999.0,0.00033873,120]
[392045428,1761119433630,-5000.0,0.00033874,7]
[392045429,1761119433639,-1484.038,0.000339,120]
[392045430,1761119433648,-2000.0,0.00033919,5]
[392045431,1761119433658,-321.779608,0.00033931,7]
[392045432,1761119433667,-239.108693,0.00033931,7]
[392045433,1761119433677,-875.47,0.0003397,7]
[392045434,1761119433687,-1615.75,0.0003397,7]
[392045435,1761119433697,-852.21,0.0003397,7]
[392045436,1761119433706,-931.3,0.00033971,7]
[392045437,1761119433716,-500.0,0.00033971,7]
[392045438,1761119433726,-500.0,0.00033973,5]
[392045439,1761119433735,-500.0,0.00033973,5]
[392045440,1761119433743,-500.0,0.00033973,5]
[392045441,1761119433753,-500.0,0.00033973,5]
[392045442,1761119433762,-41785.06843554,0.00033988,2]
[392045459,1761119437803,-500.0,0.00032275,5]
[392045461,1761119437812,-482.41,0.00033988,10]
[392045463,1761119437821,-56507.82442406,0.00033988,2]
[392045465,1761119437831,-1465.80535128,0.00033988,2]
[392045467,1761119437840,-194.18282726,0.00033989,7]
[392045469,1761119437849,-6000.0,0.00033996,15]
[392045471,1761119437858,-354272.775209,0.00033998,2]
[392045473,1761119437867,-200.0,0.00034,120]
[392045475,1761119437875,-200.4797,0.00034,120]
[392045477,1761119437884,-200.0,0.00034,120]
[392045479,1761119437893,-2017.17340017,0.00034025,2]
[392045481,1761119437903,-151.0,0.00034055,2]
[392045483,1761119437912,-1057.0,0.0003406,2]
[392045484,1761119437921,-875.47,0.00034244,7]
[392045486,1761119437931,-1615.75,0.00034244,7]
[392045488,1761119437940,-852.21,0.00034244,7]
[392045490,1761119437950,-931.3,0.00034245,7]
[392045492,1761119437959,-500.0,0.00034245,7]
[392045494,1761119437969,-11000.0,0.00034246,2]
[392045496,1761119437980,-11000.0,0.00034246,2]
[392045498,1761119437990,-11000.0,0.00034246,2]
[392045500,1761119438000,-11000.0,0.00034246,2]
[392045502,1761119438010,-500.0,0.00034273,5]
[392045504,1761119438020,-501.58360554,0.00034273,5]
[392045506,1761119438031,-500.0,0.00034273,5]
[392045508,1761119438041,-500.0,0.00034273,5]
[392045510,1761119438051,-500.0,0.00034273,4]
[392045512,1761119438061,-500.0,0.00034273,5]
[392045514,1761119438071,-500.0,0.00034273,5]
[392045516,1761119438080,-500.0,0.00034273,5]
[392045518,1761119438089,-400.24667751,0.00034273,5]
[392045520,1761119438099,-500.0,0.00034273,5]
[392045522,1761119438109,-500.0,0.00034273,5]
[392045524,1761119438119,-162.03511569,0.00034273,5]
[392045526,1761119438131,-500.0,0.00034273,5]
[392045528,1761119438140,-512.76098519,0.00034273,5]
[392045530,1761119438150,-7742.98398855,0.000343,11]
[392045532,1761119438159,-321.779608,0.00034379,2]
[392045534,1761119438170,-239.108693,0.00034379,2]
[392045536,1761119438179,-189.96940269,0.000344,120]
[392045538,1761119438189,-187.10934598,0.000344,120]
[392045540,1761119438198,-499.66405979,0.000344,120]
[392045542,1761119438209,-1380.03179924,0.000344,120]
[392045544,1761119438219,-170.10975163,0.000344,120]
[392045546,1761119438228,-542.13331174,0.000344,120]
[392045548,1761119438238,-233.63436279,0.000344,120]
[392045550,1761119438250,-164.53979293,0.000344,120]
[392045552,1761119438260,-373.11403563,0.000344,120]
[392045554,1761119438271,-165.99985449,0.000344,120]
[392045556,1761119438280,-176.88359495,0.000344,120]
[392045558,1761119438290,-171.91579904,0.000344,120]
[392045560,1761119438300,-2017.17340017,0.00034452,2]
[392045562,1761119438308,-500.0,0.00034467,5]
[392045564,1761119438318,-1003.123706,0.000345,15]
[392045566,1761119438329,-151.0,0.000345,11]
[392045568,1761119438339,-12286.6116075,0.00034509,2]
[392045570,1761119438349,-183.22566891,0.00034509,2]
[392045572,1761119438358,-7964.86,0.00034516,15]
[392045574,1761119438369,-875.47,0.00034518,7]
[392045576,1761119438380,-1615.75,0.00034518,7]
[392045578,1761119438390,-11000.0,0.00034518,2]
[392045580,1761119438399,-852.21,0.00034518,7]
[392045582,1761119438410,-931.3,0.00034519,7]
[392045584,1761119438419,-500.0,0.00034519,7]
[392045585,1761119438429,-1000.0,0.00034521,5]
[392045587,1761119438438,-1000.0,0.00034521,5]
[392045589,1761119438448,-827.55027173,0.00034521,5]
[392045591,1761119438461,-1000.0,0.00034521,5]
[392045593,1761119438472,-341.3497367,0.00034559,2]
[392045595,1761119438481,-18815.073962,0.00034559,2]
[392045597,1761119438491,-500.0,0.00034573,5]
[392045598,1761119438503,-500.0,0.00034573,5]
[392045600,1761119438513,-39052.35562181,0.0003459,2]
[392045603,1761119438535,-286.0,0.00032823,5]
[392045605,1761119438548,-500.0,0.00032823,5]
[392045652,1761119581523,662.8881391,0.0003506,120]
[392045653,1761119590129,15000.0,0.0003506,30]
[392046704,1761119656230,20000.0,0.0003506,30]
[392046904,1761119708110,421.31746979,0.00035068,30]
[392047274,1761120008406,250.0,0.00035068,30]
[392047275,1761120009017,250.0,0.00035068,30]
[392047277,1761120009671,250.0,0.00035068,30]
[392047279,1761120010359,250.0,0.00035068,30]
[392047280,1761120011044,250.0,0.00035068,30]
[392047281,1761120011699,250.0,0.00035068,30]
[392047284,1761120012333,250.0,0.00035068,30]
[392047285,1761120013672,250.0,0.00035068,30]
[392052025,1761120632158,-150.0,0.00025376,2]
[392052026,1761120632168,-177.0,0.00026376,2]
[392052027,1761120632177,-204.0,0.00027376,2]
[392052028,1761120632188,-218.810133,0.0002904,2]
[392052029,1761120632197,-162.593911,0.0002904,2]
[392052030,1761120632206,-450.64593876,0.00030946,7]
[392052034,1761120632380,-49.35406124,0.00030946,7]
[392052036,1761120632390,-477.66056493,0.00031406,2]
[392052038,1761120632400,-57.92831262,0.00031478,7]
[392052203,1761120638034,-452.76168738,0.00031478,7]
[392052205,1761120638044,-400.0,0.00031478,2]
[392052207,1761120638054,-34441.100117,0.00031479,2]
[392052209,1761120638064,-218.810133,0.00031506,7]
[392052211,1761120638074,-162.593911,0.00031506,7]
[392052213,1761120638083,-510.69,0.00031752,7]
[392052215,1761120638092,-314.537196,0.00031915,2]
[392052217,1761120638103,-3555.8702488,0.00031915,2]
[392052219,1761120638112,-510.69,0.00032026,7]
[392052221,1761120638121,-510.69,0.000323,7]
[392052235,1761120638131,-510.69,0.00032573,7]
[392052237,1761120638245,-510.69,0.00032847,7]
[392052239,1761120638255,-510.69,0.00033121,7]
[392052241,1761120638264,-510.69,0.00033395,7]
[392052243,1761120638273,-200.0,0.00033412,120]
[392052245,1761120638283,-200.0,0.00033414,120]
[392052247,1761120638292,-218.810133,0.00033483,2]
[392052249,1761120638301,-162.593911,0.00033483,2]
[392052251,1761120638311,-510.69,0.00033669,7]
[392052253,1761120638320,-543.26,0.00033745,7]
[392052255,1761120638330,-500.0,0.00033745,7]
[392052257,1761120638339,-218.810133,0.00033746,10]
[392052259,1761120638349,-162.593911,0.00033746,10]
[392052261,1761120638359,-200.0,0.00033874,2]
[392052263,1761120638369,-403.14601822,0.00033894,2]
[392052265,1761120638379,-477.66056488,0.00033905,2]
[392052267,1761120638389,-510.69,0.00033943,7]
[392052269,1761120638398,-200.0,0.00034,120]
[392052271,1761120638407,-543.26,0.00034019,7]
[392052273,1761120638417,-500.0,0.00034019,7]
[392052275,1761120638427,-1208.0,0.00034096,2]
[392052277,1761120638437,-218.810133,0.00034136,7]
[392052279,1761120638448,-162.593911,0.00034136,7]
[392052281,1761120638457,-510.69,0.00034217,7]
[392052283,1761120638468,-2017.17340017,0.00034236,2]
[392052285,1761120638478,-942.52,0.00034242,7]
[392052287,1761120638488,-500.0,0.00034244,7]
[392052289,1761120638498,-285.0064076,0.00034244,7]
[392052291,1761120638508,-485.27738209,0.00034244,7]
[392052293,1761120638518,-226.23461202,0.00034244,7]
[392052295,1761120638527,-500.0,0.00034244,2]
[392052297,1761120638537,-214.47530955,0.00034244,7]
[392052299,1761120638546,-500.0,0.00034244,7]
[392052301,1761120638556,-500.0,0.00034244,7]
[392052303,1761120638570,-500.0,0.00034244,2]
[392052305,1761120638579,-456.97307727,0.00034244,7]
[392052307,1761120638588,-500.0,0.00034244,7]
[392052309,1761120638597,-500.0,0.00034244,7]
[392052311,1761120638606,-500.0,0.00034244,2]
[392052313,1761120638616,-500.0,0.00034244,7]
[392052315,1761120638624,-500.0,0.00034244,2]
[392052317,1761120638634,-500.0,0.00034244,7]
[392052319,1761120638643,-500.0,0.00034244,7]
[392052321,1761120638651,-500.0,0.00034244,2]
[392052323,1761120638661,-500.0,0.00034244,7]
[392052325,1761120638672,-500.0,0.00034244,2]
[392052327,1761120638681,-500.0,0.00034244,7]
[392052329,1761120638690,-500.0,0.00034244,7]
[392052331,1761120638700,-500.0,0.00034244,2]
[392052333,1761120638709,-500.0,0.00034244,7]
[392052335,1761120638720,-500.0,0.00034244,2]
[392052337,1761120638729,-500.0,0.00034244,7]
[392052339,1761120638739,-500.0,0.00034244,7]
[392052341,1761120638748,-500.0,0.00034244,2]
[392052343,1761120638757,-500.0,0.00034244,2]
[392052345,1761120638766,-500.0,0.00034244,2]
[392052347,1761120638776,-647.57011678,0.00034244,7]
[392052349,1761120638785,-500.0,0.00034244,2]
[392052351,1761120638795,-500.0,0.00034244,2]
[392052353,1761120638804,-500.0,0.00034244,2]
[392052355,1761120638814,-500.0,0.00034244,2]
[392052357,1761120638823,-500.0,0.00034244,7]
[392052359,1761120638833,-500.0,0.00034244,2]
[392052361,1761120638842,-500.0,0.00034244,2]
[392052363,1761120638851,-500.0,0.00034244,2]
[392052365,1761120638860,-500.0,0.00034244,2]
[392052367,1761120638869,-500.0,0.00034244,2]
[392052369,1761120638878,-500.0,0.00034244,2]
[392052371,1761120638887,-500.0,0.00034244,2]
[392052373,1761120638896,-500.0,0.00034244,2]
[392052375,1761120638905,-354.89449517,0.00034244,2]
[392052377,1761120638914,-500.0,0.00034244,2]
[392052379,1761120638924,-500.0,0.00034245,7]
[392052381,1761120638933,-11000.0,0.00034246,2]
[392052383,1761120638942,-543.26,0.00034293,7]
[392052385,1761120638952,-204.6,0.00034293,7]
[392052387,1761120638961,-682.01252051,0.0003439,2]
[392052389,1761120638971,-233.6343628,0.000344,120]
[392052391,1761120638980,-164.53979293,0.000344,120]
[392052393,1761120638988,-433.70664939,0.000344,120]
[392052395,1761120638997,-187.10934597,0.000344,120]
[392052397,1761120639007,-176.88359495,0.000344,120]
[392052399,1761120639016,-1307.25979009,0.000344,120]
[392052401,1761120639025,-298.49122851,0.000344,120]
[392052403,1761120639034,-170.10975163,0.000344,120]
[392052405,1761120639044,-178.84688244,0.00034406,2]
[392052407,1761120639053,-2017.17340017,0.00034408,2]
[392052409,1761120639062,-1928.99,0.0003447,10]
[392052411,1761120639072,-1607.49,0.0003447,10]
[392052412,1761120639081,-1339.58,0.0003447,10]
[392052415,1761120639091,-179072.393985,0.0003448,2]
[392052416,1761120639101,-733.18240051,0.0003448,2]
[392052419,1761120639111,-10869.94798669,0.0003449,2]
[392052421,1761120639128,-40351.55940987,0.0003449,2]
[392052423,1761120639140,-750.0,0.0003449,2]
[392052426,1761120639151,-4149.58334033,0.0003449,2]
[392052489,1761120640238,-271.025,0.0003449,2]
[392052490,1761120640327,-635.0,0.0003449,2]
[392052491,1761120640339,-1929.26402892,0.0003449,2]
[392052627,1761120643628,-186.408738,0.00031229,120]
[392052629,1761120643638,-232.72307568,0.0003449,2]
[392052707,1761120646341,-152.62,0.00032456,15]
[392052708,1761120646354,-152.62,0.00032656,15]
[392052709,1761120646367,-152.62,0.00032756,15]
[392052710,1761120646379,-151.0,0.00034096,2]
[392052711,1761120646390,-1116.31,0.0003448,10]
[392052712,1761120646400,-310810.89715851,0.0003449,2]
[392052713,1761120646411,-500.0,0.0003449,30]
[392052714,1761120646421,-510.69,0.00034491,7]
[392052715,1761120646433,-22384.0492482,0.00034496,2]
[392052716,1761120646445,-14781.0663102,0.00034506,2]
[392052717,1761120646456,-170.6748684,0.00034506,2]
[392052718,1761120646467,-256.0123025,0.00034506,2]
[392052719,1761120646479,-4034.0076518,0.00034506,2]
[392052720,1761120646491,-942.52,0.00034516,7]
[392052721,1761120646502,-500.0,0.00034519,7]
[392052722,1761120646514,-543.26,0.00034567,7]
[392052723,1761120646526,-500.0,0.00034573,5]
[392052724,1761120646537,-10286.75762616,0.00034599,2]
[392052725,1761120646548,-250.29,0.000346,7]
[392052726,1761120646560,-14275.65,0.000346,14]
[392052727,1761120646574,-2217470.64814459,0.0003465,3]
[392052728,1761120646586,-682.01252049,0.00034693,2]
[392052729,1761120646598,-12500.0,0.00034697,10]
[392052730,1761120646610,-1645.21,0.000347,14]
[392052731,1761120646621,-178.84688244,0.00034701,2]
[392052732,1761120646632,-44768.0984963,0.0003476,2]
[392052733,1761120646643,-510.69,0.00034765,7]
[392052734,1761120646655,-500.0,0.00034773,5]
[392052735,1761120646665,-500.0,0.00034773,5]
[392052736,1761120646676,-500.0,0.00034773,5]
[392052737,1761120646687,-500.0,0.00034773,4]
[392052738,1761120646698,-500.0,0.00034773,5]
[392052739,1761120646708,-500.0,0.00034773,5]
[392052740,1761120646719,-500.0,0.00034773,5]
[392052741,1761120646730,-500.0,0.00034773,5]
[392052743,1761120646741,-500.0,0.00034773,5]
[392052744,1761120646753,-942.52,0.0003479,7]
[392052745,1761120646765,-500.0,0.00034793,7]
[392052746,1761120646776,-12500.0,0.00034794,10]
[392052747,1761120646787,-9381.63319944,0.00034794,10]